{"text_format":"3","workbook":"xlsx","n_sheets":7,"sheets":["Ponedeljak","Utorak","Sreda","Četvrtak","Petak","Subota","Nedelja"],"not_rendered":{"defined_names":24},"read":"whole","date_system":"1900"}

{"sheet":"Ponedeljak","index":0,"n_rows":10,"n_cols":13,"rows_kept":10,"merged":[[1,1,2,1],[1,2,1,10],[1,11,1,12],[2,2,2,10],[2,11,2,12]]}
[null,"RASPORED SMENA"]
[null,"PONEDELJAK","Za sedmicu: ",{"$nulls":8},"DATUM"]
[null,null,"Ime sektora: ",{"$nulls":8},"SEKTOR"]
[null,"Ime zaposlenog","7:00","8:00","9:00","10:00","11:00","12:00","13:00","14:00","15:00","Bolovanje?","ZBIR"]
[null,"Tijana S","menadžer","menadžer","menadžer","menadžer","menadžer","menadžer","menadžer","menadžer","menadžer",null,{"$f":"IFERROR(COUNTIF(Ponedeljak[[#This Row],[7:00]:[15:00]],\"*\"),\"\")","v":9}]
[null,"Luka M",null,"blagajnik","blagajnik","blagajnik","blagajnik",{"$nulls":5},{"$f":"IFERROR(COUNTIF(Ponedeljak[[#This Row],[7:00]:[15:00]],\"*\"),\"\")","v":4}]
[null,"Sava J",null,"recepcija","recepcija","recepcija","recepcija ","recepcija","recepcija","recepcija",null,null,{"$f":"IFERROR(COUNTIF(Ponedeljak[[#This Row],[7:00]:[15:00]],\"*\"),\"\")","v":7}]
[null,"Predrag K",null,"recepcija","recepcija","recepcija","recepcija ","recepcija","recepcija","recepcija",null,null,{"$f":"IFERROR(COUNTIF(Ponedeljak[[#This Row],[7:00]:[15:00]],\"*\"),\"\")","v":7}]
[null,"Dimitrije M",{"$nulls":10},{"$f":"IFERROR(COUNTIF(Ponedeljak[[#This Row],[7:00]:[15:00]],\"*\"),\"\")","v":0}]
[null,"Nada S",{"$nulls":5},"blagajnik","blagajnik","blagajnik","blagajnik",null,{"$f":"IFERROR(COUNTIF(Ponedeljak[[#This Row],[7:00]:[15:00]],\"*\"),\"\")","v":4}]

{"sheet":"Utorak","index":1,"n_rows":10,"n_cols":13,"rows_kept":10,"merged":[[1,1,2,1],[1,2,1,10],[1,11,1,12],[2,2,2,10],[2,11,2,12]]}
[null,{"$f":"RASPORED_SMENA_Naslov","v":"RASPORED SMENA"}]
[null,"UTORAK","Za sedmicu: ",{"$nulls":8},{"$f":"DATUM","v":"DATUM"}]
[null,null,"Ime sektora: ",{"$nulls":8},{"$f":"SEKTOR","v":"SEKTOR"}]
[null,"Ime zaposlenog","7:00","8:00","9:00","10:00","11:00","12:00","13:00","14:00","15:00","Bolovanje?","ZBIR"]
[null,"Tijana S","menadžer","menadžer","menadžer","menadžer","menadžer","menadžer","menadžer","menadžer","menadžer",null,{"$f":"IFERROR(COUNTIF(Utorak[[#This Row],[7:00]:[15:00]],\"*\"),\"\")","v":9}]
[null,"Luka M",null,"blagajnik","blagajnik","blagajnik","blagajnik",{"$nulls":5},{"$f":"IFERROR(COUNTIF(Utorak[[#This Row],[7:00]:[15:00]],\"*\"),\"\")","v":4}]
[null,"Sava J",null,"recepcija","recepcija","recepcija","recepcija ","recepcija","recepcija","recepcija",null,null,{"$f":"IFERROR(COUNTIF(Utorak[[#This Row],[7:00]:[15:00]],\"*\"),\"\")","v":7}]
[null,"Predrag K",null,"recepcija","recepcija","recepcija","recepcija ","recepcija","recepcija","recepcija",null,null,{"$f":"IFERROR(COUNTIF(Utorak[[#This Row],[7:00]:[15:00]],\"*\"),\"\")","v":7}]
[null,"Dimitrije M",{"$nulls":9},"Bolovanje",{"$f":"IFERROR(COUNTIF(Utorak[[#This Row],[7:00]:[15:00]],\"*\"),\"\")","v":0}]
[null,"Nada S",{"$nulls":5},"blagajnik","blagajnik","blagajnik","blagajnik",null,{"$f":"IFERROR(COUNTIF(Utorak[[#This Row],[7:00]:[15:00]],\"*\"),\"\")","v":4}]

{"sheet":"Sreda","index":2,"n_rows":10,"n_cols":13,"rows_kept":10,"merged":[[1,1,2,1],[1,2,1,10],[1,11,1,12],[2,2,2,10],[2,11,2,12]]}
[null,{"$f":"RASPORED_SMENA_Naslov","v":"RASPORED SMENA"}]
[null,"SREDA","Za sedmicu: ",{"$nulls":8},{"$f":"DATUM","v":"DATUM"}]
[null,null,"Ime sektora: ",{"$nulls":8},{"$f":"SEKTOR","v":"SEKTOR"}]
[null,"Ime zaposlenog","7:00","8:00","9:00","10:00","11:00","12:00","13:00","14:00","15:00","Bolovanje?","ZBIR"]
[null,"Tijana S","menadžer","menadžer","menadžer","menadžer","menadžer","menadžer","menadžer","menadžer","menadžer",null,{"$f":"IFERROR(COUNTIF(Sreda[[#This Row],[7:00]:[15:00]],\"*\"),\"\")","v":9}]
[null,"Luka M",null,"blagajnik","blagajnik","blagajnik","blagajnik",{"$nulls":5},{"$f":"IFERROR(COUNTIF(Sreda[[#This Row],[7:00]:[15:00]],\"*\"),\"\")","v":4}]
[null,"Sava J",null,"recepcija","recepcija","recepcija","recepcija ","recepcija","recepcija","recepcija",null,null,{"$f":"IFERROR(COUNTIF(Sreda[[#This Row],[7:00]:[15:00]],\"*\"),\"\")","v":7}]
[null,"Predrag K",null,"recepcija","recepcija","recepcija","recepcija ","recepcija","recepcija","recepcija",null,null,{"$f":"IFERROR(COUNTIF(Sreda[[#This Row],[7:00]:[15:00]],\"*\"),\"\")","v":7}]
[null,"Dimitrije M",{"$nulls":9},"Bolovanje",{"$f":"IFERROR(COUNTIF(Sreda[[#This Row],[7:00]:[15:00]],\"*\"),\"\")","v":0}]
[null,"Nada S",{"$nulls":5},"blagajnik","blagajnik","blagajnik","blagajnik",null,{"$f":"IFERROR(COUNTIF(Sreda[[#This Row],[7:00]:[15:00]],\"*\"),\"\")","v":4}]

{"sheet":"Četvrtak","index":3,"n_rows":10,"n_cols":13,"rows_kept":10,"merged":[[1,1,2,1],[1,2,1,10],[1,11,1,12],[2,2,2,10],[2,11,2,12]]}
[null,{"$f":"RASPORED_SMENA_Naslov","v":"RASPORED SMENA"}]
[null,"ČETVRTAK","Za sedmicu: ",{"$nulls":8},{"$f":"DATUM","v":"DATUM"}]
[null,null,"Ime sektora: ",{"$nulls":8},{"$f":"SEKTOR","v":"SEKTOR"}]
[null,"Ime zaposlenog","7:00","8:00","9:00","10:00","11:00","12:00","13:00","14:00","15:00","Bolovanje?","ZBIR"]
[null,"Tijana S","menadžer","menadžer","menadžer","menadžer","menadžer","menadžer","menadžer","menadžer","menadžer",null,{"$f":"IFERROR(COUNTIF(Četvrtak[[#This Row],[7:00]:[15:00]],\"*\"),\"\")","v":9}]
[null,"Luka M",null,"blagajnik","blagajnik","blagajnik","blagajnik",{"$nulls":5},{"$f":"IFERROR(COUNTIF(Četvrtak[[#This Row],[7:00]:[15:00]],\"*\"),\"\")","v":4}]
[null,"Sava J",null,"recepcija","recepcija","recepcija","recepcija ","recepcija","recepcija","recepcija",null,null,{"$f":"IFERROR(COUNTIF(Četvrtak[[#This Row],[7:00]:[15:00]],\"*\"),\"\")","v":7}]
[null,"Predrag K",null,"recepcija","recepcija","recepcija","recepcija ","recepcija","recepcija","recepcija",null,null,{"$f":"IFERROR(COUNTIF(Četvrtak[[#This Row],[7:00]:[15:00]],\"*\"),\"\")","v":7}]
[null,"Dimitrije M",{"$nulls":9},"Bolovanje",{"$f":"IFERROR(COUNTIF(Četvrtak[[#This Row],[7:00]:[15:00]],\"*\"),\"\")","v":0}]
[null,"Nada S",{"$nulls":5},"blagajnik","blagajnik","blagajnik","blagajnik",null,{"$f":"IFERROR(COUNTIF(Četvrtak[[#This Row],[7:00]:[15:00]],\"*\"),\"\")","v":4}]

{"sheet":"Petak","index":4,"n_rows":10,"n_cols":13,"rows_kept":10,"merged":[[1,1,2,1],[1,2,1,10],[1,11,1,12],[2,2,2,10],[2,11,2,12]]}
[null,{"$f":"RASPORED_SMENA_Naslov","v":"RASPORED SMENA"}]
[null,"PETAK","Za sedmicu: ",{"$nulls":8},{"$f":"DATUM","v":"DATUM"}]
[null,null,"Ime sektora: ",{"$nulls":8},{"$f":"SEKTOR","v":"SEKTOR"}]
[null,"Ime zaposlenog","7:00","8:00","9:00","10:00","11:00","12:00","13:00","14:00","15:00","Bolovanje?","ZBIR"]
[null,"Tijana S","menadžer","menadžer","menadžer","menadžer","menadžer","menadžer","menadžer","menadžer","menadžer",null,{"$f":"IFERROR(COUNTIF(Petak[[#This Row],[7:00]:[15:00]],\"*\"),\"\")","v":9}]
[null,"Luka M",null,"blagajnik","blagajnik","blagajnik","blagajnik",{"$nulls":5},{"$f":"IFERROR(COUNTIF(Petak[[#This Row],[7:00]:[15:00]],\"*\"),\"\")","v":4}]
[null,"Sava J",null,"recepcija","recepcija","recepcija","recepcija ","recepcija","recepcija","recepcija",null,null,{"$f":"IFERROR(COUNTIF(Petak[[#This Row],[7:00]:[15:00]],\"*\"),\"\")","v":7}]
[null,"Predrag K",null,"recepcija","recepcija","recepcija","recepcija ","recepcija","recepcija","recepcija",null,null,{"$f":"IFERROR(COUNTIF(Petak[[#This Row],[7:00]:[15:00]],\"*\"),\"\")","v":7}]
[null,"Dimitrije M",{"$nulls":9},"Bolovanje",{"$f":"IFERROR(COUNTIF(Petak[[#This Row],[7:00]:[15:00]],\"*\"),\"\")","v":0}]
[null,"Nada S",{"$nulls":5},"blagajnik","blagajnik","blagajnik","blagajnik",null,{"$f":"IFERROR(COUNTIF(Petak[[#This Row],[7:00]:[15:00]],\"*\"),\"\")","v":4}]

{"sheet":"Subota","index":5,"n_rows":10,"n_cols":13,"rows_kept":10,"merged":[[1,1,2,1],[1,2,1,10],[1,11,1,12],[2,2,2,10],[2,11,2,12]]}
[null,{"$f":"RASPORED_SMENA_Naslov","v":"RASPORED SMENA"}]
[null,"SUBOTA","Za sedmicu: ",{"$nulls":8},{"$f":"DATUM","v":"DATUM"}]
[null,null,"Ime sektora: ",{"$nulls":8},{"$f":"SEKTOR","v":"SEKTOR"}]
[null,"Ime zaposlenog","7:00","8:00","9:00","10:00","11:00","12:00","13:00","14:00","15:00","Bolovanje?","ZBIR"]
[null,"Tijana S","menadžer","menadžer","menadžer","menadžer","menadžer","menadžer","menadžer","menadžer","menadžer",null,{"$f":"IFERROR(COUNTIF(Subota[[#This Row],[7:00]:[15:00]],\"*\"),\"\")","v":9}]
[null,"Luka M",null,"blagajnik","blagajnik","blagajnik","blagajnik",{"$nulls":5},{"$f":"IFERROR(COUNTIF(Subota[[#This Row],[7:00]:[15:00]],\"*\"),\"\")","v":4}]
[null,"Sava J",null,"recepcija","recepcija","recepcija","recepcija ","recepcija","recepcija","recepcija",null,null,{"$f":"IFERROR(COUNTIF(Subota[[#This Row],[7:00]:[15:00]],\"*\"),\"\")","v":7}]
[null,"Predrag K",null,"recepcija","recepcija","recepcija","recepcija ","recepcija","recepcija","recepcija",null,null,{"$f":"IFERROR(COUNTIF(Subota[[#This Row],[7:00]:[15:00]],\"*\"),\"\")","v":7}]
[null,"Dimitrije M",{"$nulls":9},"Bolovanje",{"$f":"IFERROR(COUNTIF(Subota[[#This Row],[7:00]:[15:00]],\"*\"),\"\")","v":0}]
[null,"Nada S",{"$nulls":5},"blagajnik","blagajnik","blagajnik","blagajnik",null,{"$f":"IFERROR(COUNTIF(Subota[[#This Row],[7:00]:[15:00]],\"*\"),\"\")","v":4}]

{"sheet":"Nedelja","index":6,"n_rows":10,"n_cols":13,"rows_kept":10,"merged":[[1,1,2,1],[1,2,1,10],[1,11,1,12],[2,2,2,10],[2,11,2,12]]}
[null,{"$f":"RASPORED_SMENA_Naslov","v":"RASPORED SMENA"}]
[null,"NEDELJA","Za sedmicu: ",{"$nulls":8},{"$f":"DATUM","v":"DATUM"}]
[null,null,"Ime sektora: ",{"$nulls":8},{"$f":"SEKTOR","v":"SEKTOR"}]
[null,"Ime zaposlenog","7:00","8:00","9:00","10:00","11:00","12:00","13:00","14:00","15:00","Bolovanje?","ZBIR"]
[null,"Tijana S","menadžer","menadžer","menadžer","menadžer","menadžer","menadžer","menadžer","menadžer","menadžer",null,{"$f":"IFERROR(COUNTIF(Nedelja[[#This Row],[7:00]:[15:00]],\"*\"),\"\")","v":9}]
[null,"Luka M",null,"blagajnik","blagajnik","blagajnik","blagajnik",{"$nulls":5},{"$f":"IFERROR(COUNTIF(Nedelja[[#This Row],[7:00]:[15:00]],\"*\"),\"\")","v":4}]
[null,"Sava J",null,"recepcija","recepcija","recepcija","recepcija ","recepcija","recepcija","recepcija",null,null,{"$f":"IFERROR(COUNTIF(Nedelja[[#This Row],[7:00]:[15:00]],\"*\"),\"\")","v":7}]
[null,"Predrag K",null,"recepcija","recepcija","recepcija","recepcija ","recepcija","recepcija","recepcija",null,null,{"$f":"IFERROR(COUNTIF(Nedelja[[#This Row],[7:00]:[15:00]],\"*\"),\"\")","v":7}]
[null,"Dimitrije M",{"$nulls":9},"Bolovanje",{"$f":"IFERROR(COUNTIF(Nedelja[[#This Row],[7:00]:[15:00]],\"*\"),\"\")","v":0}]
[null,"Nada S",{"$nulls":5},"blagajnik","blagajnik","blagajnik","blagajnik",null,{"$f":"IFERROR(COUNTIF(Nedelja[[#This Row],[7:00]:[15:00]],\"*\"),\"\")","v":4}]